fUST/lending_fUST_20250828
["ID","MTS","AMOUNT","RATE_DAILY","PERIOD"]
[381852193,1756371043540,-480.0,0.00019178,2]
[381852195,1756371043549,-480.0,0.00019178,2]
[381852197,1756371043559,-480.0,0.00019178,2]
[381852199,1756371043572,-480.0,0.00019178,2]
[381852201,1756371043582,-480.0,0.00019178,2]
[381852203,1756371043590,-480.0,0.00019178,2]
[381852205,1756371043599,-480.0,0.00019178,2]
[381852206,1756371043609,-480.0,0.00019178,2]
[381852208,1756371043619,-480.0,0.00019178,2]
[381852210,1756371043629,-488.76501945,0.00019178,2]
[381852213,1756371043638,-3335.86,0.00019178,2]
[381852215,1756371043648,-480.0,0.00019178,2]
[381852217,1756371043659,-1946.09,0.00019178,2]
[381852219,1756371043668,-480.0,0.00019178,2]
[381852221,1756371043677,-480.0,0.00019178,2]
[381852223,1756371043687,-480.0,0.00019178,2]
[381852224,1756371043696,-2736.72,0.00019178,2]
[381852226,1756371043705,-231.41900223,0.00019178,2]
[381852228,1756371043714,-480.0,0.00019178,2]
[381852230,1756371043724,-480.0,0.00019178,2]
[381852232,1756371043734,-681.82,0.00019178,2]
[381852234,1756371043743,-821.56,0.00019178,2]
[381852236,1756371043753,-480.0,0.00019178,2]
[381852238,1756371043762,-563.16,0.00019178,2]
[381852240,1756371043771,-480.0,0.00019178,2]
[381852242,1756371043780,-519.06,0.00019178,2]
[381852244,1756371043789,-580.5,0.00019178,2]
[381852246,1756371043798,-480.0,0.00019178,2]
[381852247,1756371043807,-480.0,0.00019178,2]
[381852249,1756371043816,-480.0,0.00019178,2]
[381852251,1756371043825,-480.0,0.00019178,2]
[381852253,1756371043834,-480.0,0.00019178,2]
[381852255,1756371043843,-962.38,0.00019178,2]
[381852258,1756371043853,-480.0,0.00019178,2]
[381852260,1756371043863,-983.47,0.00019178,2]
[381852263,1756371043871,-480.0,0.00019178,2]
[381852266,1756371043881,-480.0,0.00019178,2]
[381852268,1756371043890,-1119.29,0.00019178,2]
[381852270,1756371043899,-480.0,0.00019178,2]
[381852272,1756371043908,-618.83,0.00019178,2]
[381852273,1756371043918,-466.28953477,0.00019178,2]
[381852275,1756371043927,-480.0,0.00019178,2]
[381852278,1756371043936,-480.0,0.00019178,2]
[381852280,1756371043945,-1172.44,0.00019178,2]
[381852282,1756371043954,-363.60861548,0.00019178,2]
[381852284,1756371043964,-480.0,0.00019178,2]
[381852286,1756371043973,-480.0,0.00019178,2]
[381852288,1756371043983,-492.73,0.00019178,2]
[381852289,1756371043992,-480.0,0.00019178,2]
[381852291,1756371044001,-480.0,0.00019178,2]
[381852293,1756371044010,-480.0,0.00019178,2]
[381852295,1756371044019,-434.58168498,0.00019178,2]
[381852297,1756371044027,-480.0,0.00019178,2]
[381852299,1756371044036,-1264.75,0.00019178,2]
[381852301,1756371044046,-480.0,0.00019178,2]
[381852303,1756371044055,-480.0,0.00019178,2]
[381852305,1756371044065,-1902.8,0.00019178,2]
[381852307,1756371044074,-480.0,0.00019178,2]
[381852309,1756371044083,-480.0,0.00019178,2]
[381852310,1756371044092,-480.0,0.00019178,2]
[381852312,1756371044101,-3043.26,0.00019178,2]
[381852314,1756371044110,-559.42,0.00019178,2]
[381852316,1756371044120,-510.43,0.00019178,2]
[381852318,1756371044129,-480.0,0.00019178,2]
[381852320,1756371044138,-4218.18,0.00019178,2]
[381852322,1756371044147,-480.0,0.00019178,2]
[381852324,1756371044156,-480.0,0.00019178,2]
[381852326,1756371044165,-480.0,0.00019178,2]
[381852327,1756371044174,-480.0,0.00019178,2]
[381852329,1756371044183,-480.0,0.00019178,2]
[381852331,1756371044193,-480.0,0.00019178,2]
[381852333,1756371044202,-525.9,0.00019178,2]
[381852335,1756371044211,-480.0,0.00019178,2]
[381852337,1756371044220,-480.0,0.00019178,2]
[381852339,1756371044230,-480.0,0.00019178,2]
[381852341,1756371044238,-480.0,0.00019178,2]
[381852343,1756371044247,-480.0,0.00019178,2]
[381852345,1756371044257,-480.0,0.00019178,2]
[381852347,1756371044267,-618.96,0.00019178,2]
[381852349,1756371044276,-480.0,0.00019178,2]
[381852351,1756371044285,-480.0,0.00019178,2]
[381852353,1756371044294,-480.0,0.00019178,2]
[381852354,1756371044304,-480.0,0.00019178,2]
[381852356,1756371044313,-1826.5,0.00019178,2]
[381852358,1756371044323,-3227.45,0.00019178,2]
[381852360,1756371044332,-535.01,0.00019178,2]
[381852362,1756371044341,-480.0,0.00019178,2]
[381852364,1756371044350,-480.0,0.00019178,2]
[381852366,1756371044359,-1086.93,0.00019178,2]
[381852368,1756371044369,-480.0,0.00019178,2]
[381852370,1756371044378,-1358.14,0.00019178,2]
[381852372,1756371044387,-482.48868284,0.00019178,2]
[381852374,1756371044397,-480.0,0.00019178,2]
[381852376,1756371044406,-480.0,0.00019178,2]
[381852378,1756371044415,-480.0,0.00019178,2]
[381852380,1756371044424,-1256.86,0.00019178,2]
[381852381,1756371044434,-480.0,0.00019178,2]
[381852384,1756371044445,-1905.96,0.00019178,2]
[381852386,1756371044454,-544.1,0.00019178,2]
[381852389,1756371044464,-480.0,0.00019178,2]
[381852392,1756371044473,-608.72,0.00019178,2]
[381852395,1756371044483,-480.0,0.00019178,2]
[381852397,1756371044492,-716.76,0.00019178,2]
[381852399,1756371044502,-480.0,0.00019178,2]
[381852417,1756371044659,-2710.88,0.00019178,2]
[381852419,1756371044689,-480.0,0.00019178,2]
[381852421,1756371044699,-480.0,0.00019178,2]
[381852423,1756371044708,-480.0,0.00019178,2]
[381852425,1756371044718,-697.79,0.00019178,2]
[381852427,1756371044727,-480.0,0.00019178,2]
[381852429,1756371044736,-480.0,0.00019178,2]
[381852431,1756371044745,-760.52,0.00019178,2]
[381852433,1756371044754,-350.28734603,0.00019178,2]
[381852435,1756371044764,-480.0,0.00019178,2]
[381852437,1756371044774,-480.0,0.00019178,2]
[381852439,1756371044783,-480.0,0.00019178,2]
[381852441,1756371044792,-625.72,0.00019178,2]
[381852443,1756371044801,-480.0,0.00019178,2]
[381852444,1756371044811,-480.0,0.00019178,2]
[381852446,1756371044820,-480.0,0.00019178,2]
[381852448,1756371044830,-480.0,0.00019178,2]
[381852450,1756371044839,-4138.42,0.00019178,2]
[381852452,1756371044848,-480.0,0.00019178,2]
[381852454,1756371044858,-480.0,0.00019178,2]
[381852456,1756371044867,-480.0,0.00019178,2]
[381852458,1756371044876,-480.0,0.00019178,2]
[381852460,1756371044885,-579.63,0.00019178,2]
[381852462,1756371044895,-480.0,0.00019178,2]
[381852464,1756371044904,-480.0,0.00019178,2]
[381852466,1756371044913,-480.0,0.00019178,2]
[381852468,1756371044924,-480.0,0.00019178,2]
[381852470,1756371044933,-582.12,0.00019178,2]
[381852472,1756371044943,-480.0,0.00019178,2]
[381852474,1756371044952,-480.0,0.00019178,2]
[381852476,1756371044961,-480.0,0.00019178,2]
[381852478,1756371044971,-844.59,0.00019178,2]
[381852480,1756371044981,-480.0,0.00019178,2]
[381852482,1756371044991,-480.0,0.00019178,2]
[381852484,1756371045000,-480.0,0.00019178,2]
[381852486,1756371045009,-544.06,0.00019178,2]
[381852488,1756371045018,-1531.28,0.00019178,2]
[381852490,1756371045028,-480.0,0.00019178,2]
[381852492,1756371045037,-482.0766652,0.00019178,2]
[381852494,1756371045046,-480.0,0.00019178,2]
[381852496,1756371045055,-480.0,0.00019178,2]
[381852498,1756371045065,-480.0,0.00019178,2]
[381852500,1756371045074,-480.0,0.00019178,2]
[381852502,1756371045083,-480.0,0.00019178,2]
[381852504,1756371045093,-480.0,0.00019178,2]
[381852506,1756371045102,-480.0,0.00019178,2]
[381852508,1756371045112,-902.92,0.00019178,2]
[381852510,1756371045122,-480.0,0.00019178,2]
[381852511,1756371045131,-1395.36,0.00019178,2]
[381852513,1756371045140,-480.0,0.00019178,2]
[381852515,1756371045149,-480.0,0.00019178,2]
[381852517,1756371045158,-349.40172221,0.00019178,2]
[381852519,1756371045167,-1343.28,0.00019178,2]
[381852521,1756371045177,-1053.97,0.00019178,2]
[381852523,1756371045186,-480.0,0.00019178,2]
[381852525,1756371045195,-675.77,0.00019178,2]
[381852527,1756371045205,-480.0,0.00019178,2]
[381852529,1756371045214,-480.0,0.00019178,2]
[381852531,1756371045223,-769.9,0.00019178,2]
[381852533,1756371045232,-480.0,0.00019178,2]
[381852535,1756371045242,-831.79,0.00019178,2]
[381852537,1756371045251,-2246.83,0.00019178,2]
[381852539,1756371045260,-682.68,0.00019178,2]
[381852540,1756371045270,-2959.75,0.00019178,2]
[381852542,1756371045281,-533.24,0.00019178,2]
[381852544,1756371045290,-480.0,0.00019178,2]
[381852546,1756371045300,-480.0,0.00019178,2]
[381852548,1756371045310,-6173.28,0.00019178,2]
[381852550,1756371045319,-480.0,0.00019178,2]
[381852552,1756371045328,-897.32,0.00019178,2]
[381852554,1756371045337,-480.0,0.00019178,2]
[381852556,1756371045347,-480.0,0.00019178,2]
[381852558,1756371045355,-597.01498634,0.00019178,2]
[381852560,1756371045365,-480.0,0.00019178,2]
[381852562,1756371045374,-480.0,0.00019178,2]
[381852564,1756371045383,-480.0,0.00019178,2]
[381852566,1756371045392,-786.99,0.00019178,2]
[381852568,1756371045401,-480.0,0.00019178,2]
[381852570,1756371045410,-480.0,0.00019178,2]
[381852572,1756371045419,-480.0,0.00019178,2]
[381852574,1756371045429,-480.0,0.00019178,2]
[381852576,1756371045438,-480.0,0.00019178,2]
[381852578,1756371045447,-520.44,0.00019178,2]
[381852580,1756371045456,-480.0,0.00019178,2]
[381852582,1756371045466,-3084.25,0.00019178,2]
[381852584,1756371045475,-480.0,0.00019178,2]
[381852586,1756371045485,-480.0,0.00019178,2]
[381852588,1756371045495,-480.0,0.00019178,2]
[381852590,1756371045504,-500.0,0.00019178,2]
[381852592,1756371045514,-444.75080206,0.00019266,2]
[381852594,1756371045524,-173.66815184,0.00019352,2]
[381852596,1756371045534,-151.0,0.000194,2]
[381852597,1756371045543,-1000.0,0.00019421,2]
[381852599,1756371045552,-1000.0,0.00019421,2]
[381852601,1756371045562,-1000.0,0.00019421,2]
[381852603,1756371045574,-348.71379246,0.00019421,2]
[381852605,1756371045583,-1000.0,0.00019421,2]
[381852607,1756371045593,-1000.0,0.00019421,2]
[381852609,1756371045603,-1000.0,0.00019421,2]
[381852611,1756371045612,-480.0,0.00019452,2]
[381852613,1756371045621,-480.0,0.00019452,2]
[381852615,1756371045630,-480.0,0.00019452,2]
[381852617,1756371045640,-480.0,0.00019452,2]
[381852619,1756371045649,-480.0,0.00019452,2]
[381852621,1756371045658,-480.0,0.00019452,2]
[381852623,1756371045667,-335.92422163,0.00019452,2]
[381852625,1756371045677,-486.14,0.00019452,2]
[381852627,1756371045686,-480.0,0.00019452,2]
[381852628,1756371045696,-480.0,0.00019452,2]
[381852629,1756371045705,-480.0,0.00019452,2]
[381852630,1756371045714,-590.59,0.00019452,2]
[381852631,1756371045723,-506.27,0.00019452,2]
[381852632,1756371045732,-554.06,0.00019452,2]
[381852633,1756371045741,-885.12,0.00019452,2]
[381852634,1756371045751,-480.0,0.00019452,2]
[381852635,1756371045760,-480.0,0.00019452,2]
[381852636,1756371045769,-480.0,0.00019452,2]
[381852637,1756371045779,-480.0,0.00019452,2]
[381852638,1756371045788,-480.0,0.00019452,2]
[381852639,1756371045798,-480.0,0.00019452,2]
[381852640,1756371045807,-480.0,0.00019452,2]
[381852641,1756371045816,-480.0,0.00019452,2]
[381852642,1756371045826,-480.0,0.00019452,2]
[381852643,1756371045835,-290.1613484,0.00019452,2]
[381852644,1756371045848,-549.22,0.00019452,2]
[381852645,1756371045858,-767.87,0.00019452,2]
[381852646,1756371045868,-480.0,0.00019452,2]
[381852647,1756371045877,-480.0,0.00019452,2]
[381852648,1756371045887,-480.0,0.00019452,2]
[381852649,1756371045897,-480.0,0.00019452,2]
[381852650,1756371045907,-548.86,0.00019452,2]
[381852651,1756371045917,-480.0,0.00019452,2]
[381852652,1756371045927,-739.29,0.00019452,2]
[381852653,1756371045937,-480.0,0.00019452,2]
[381852654,1756371045946,-486.76,0.00019452,2]
[381852655,1756371045956,-480.0,0.00019452,2]
[381852656,1756371045966,-480.0,0.00019452,2]
[381852657,1756371045975,-50.20828606,0.00019452,2]
[381852680,1756371046267,-429.79171394,0.00019452,2]
[381852682,1756371046277,-415.35213037,0.00019452,2]
[381852684,1756371046287,-692.37,0.00019452,2]
[381852686,1756371046296,-497.93,0.00019452,2]
[381852688,1756371046305,-480.0,0.00019452,2]
[381852690,1756371046315,-480.0,0.00019452,2]
[381852692,1756371046325,-480.0,0.00019452,2]
[381852694,1756371046335,-480.0,0.00019452,2]
[381852696,1756371046344,-265.34001834,0.00019452,2]
[381852698,1756371046353,-480.0,0.00019452,2]
[381852700,1756371046363,-480.0,0.00019452,2]
[381852702,1756371046373,-260.29899211,0.00019452,2]
[381852704,1756371046382,-480.0,0.00019452,2]
[381852706,1756371046391,-480.0,0.00019452,2]
[381852708,1756371046400,-516.3853136,0.00019452,2]
[381852710,1756371046410,-480.0,0.00019452,2]
[381852712,1756371046419,-480.0,0.00019452,2]
[381852714,1756371046428,-518.45,0.00019452,2]
[381852716,1756371046438,-1742.0,0.00019452,2]
[381852718,1756371046447,-480.0,0.00019452,2]
[381852720,1756371046457,-480.0,0.00019452,2]
[381852722,1756371046466,-625.97,0.00019452,2]
[381852724,1756371046475,-480.0,0.00019452,2]
[381852726,1756371046485,-480.0,0.00019452,2]
[381852728,1756371046494,-477.3430204,0.00019452,2]
[381852730,1756371046504,-480.0,0.00019452,2]
[381852732,1756371046514,-480.0,0.00019452,2]
[381852734,1756371046523,-480.0,0.00019452,2]
[381852736,1756371046532,-480.0,0.00019452,2]
[381852738,1756371046542,-480.0,0.00019452,2]
[381852740,1756371046551,-480.0,0.00019452,2]
[381852742,1756371046560,-480.0,0.00019452,2]
[381852744,1756371046574,-480.0,0.00019452,2]
[381852746,1756371046583,-480.0,0.00019452,2]
[381852748,1756371046592,-219.46325371,0.00019452,2]
[381852750,1756371046603,-1026.27,0.00019452,2]
[381852752,1756371046613,-542.0,0.00019452,2]
[381852754,1756371046622,-480.0,0.00019452,2]
[381852756,1756371046631,-480.0,0.00019452,2]
[381852758,1756371046642,-480.0,0.00019452,2]
[381852760,1756371046651,-480.0,0.00019452,2]
[381852762,1756371046660,-481.29028811,0.00019452,2]
[381852764,1756371046670,-480.0,0.00019452,2]
[381852766,1756371046680,-508.93,0.00019452,2]
[381852768,1756371046689,-480.0,0.00019452,2]
[381852770,1756371046699,-480.0,0.00019452,2]
[381852772,1756371046708,-480.0,0.00019452,2]
[381852774,1756371046717,-480.0,0.00019452,2]
[381852776,1756371046727,-480.0,0.00019452,2]
[381852778,1756371046737,-480.0,0.00019452,2]
[381852780,1756371046746,-506.10604538,0.00019452,2]
[381852782,1756371046755,-480.0,0.00019452,2]
[381852784,1756371046764,-481.62317366,0.00019452,2]
[381852786,1756371046773,-480.0,0.00019452,2]
[381852788,1756371046783,-469.75,0.00019452,2]
[381852790,1756371046792,-480.0,0.00019452,2]
[381852792,1756371046801,-480.0,0.00019452,2]
[381852794,1756371046811,-740.46,0.00019452,2]
[381852796,1756371046821,-521.59,0.00019452,2]
[381852798,1756371046830,-546.73,0.00019452,2]
[381852800,1756371046840,-480.0,0.00019452,2]
[381852802,1756371046849,-480.0,0.00019452,2]
[381852803,1756371046858,-480.0,0.00019452,2]
[381852812,1756371046926,-480.0,0.00019452,2]
[381852814,1756371046935,-480.0,0.00019452,2]
[381852816,1756371046944,-480.0,0.00019452,2]
[381852818,1756371046953,-480.0,0.00019452,2]
[381852820,1756371046962,-480.0,0.00019452,2]
[381852822,1756371046971,-500.0,0.00019452,2]
[381852824,1756371046980,-480.0,0.00019452,2]
[381852826,1756371046989,-545.2,0.00019452,2]
[381852828,1756371046998,-480.0,0.00019452,2]
[381852830,1756371047007,-480.0,0.00019452,2]
[381852831,1756371047016,-480.0,0.00019452,2]
[381852833,1756371047025,-480.0,0.00019452,2]
[381852835,1756371047035,-480.0,0.00019452,2]
[381852837,1756371047044,-820.03,0.00019452,2]
[381852839,1756371047053,-480.0,0.00019452,2]
[381852842,1756371047063,-480.0,0.00019452,2]
[381852844,1756371047073,-480.0,0.00019452,2]
[381852846,1756371047082,-480.0,0.00019452,2]
[381852847,1756371047092,-480.0,0.00019452,2]
[381852849,1756371047102,-480.0,0.00019452,2]
[381852851,1756371047111,-1293.13,0.00019452,2]
[381852853,1756371047120,-480.0,0.00019452,2]
[381852855,1756371047130,-488.68068788,0.00019452,2]
[381852857,1756371047139,-480.0,0.00019452,2]
[381852859,1756371047149,-480.0,0.00019452,2]
[381852861,1756371047159,-550.34,0.00019452,2]
[381852863,1756371047168,-720.04,0.00019452,2]
[381852865,1756371047177,-480.0,0.00019452,2]
[381852867,1756371047187,-688.51,0.00019452,2]
[381852869,1756371047197,-480.0,0.00019452,2]
[381852871,1756371047206,-480.0,0.00019452,2]
[381852873,1756371047216,-510.19,0.00019452,2]
[381852875,1756371047225,-573.11,0.00019452,2]
[381852877,1756371047234,-480.0,0.00019452,2]
[381852879,1756371047243,-480.0,0.00019452,2]
[381852881,1756371047253,-480.0,0.00019452,2]
[381852883,1756371047262,-480.0,0.00019452,2]
[381852885,1756371047272,-480.0,0.00019452,2]
[381852887,1756371047281,-481.84627304,0.00019452,2]
[381852889,1756371047290,-480.0,0.00019452,2]
[381852891,1756371047300,-480.0,0.00019452,2]
[381852893,1756371047309,-480.0,0.00019452,2]
[381852895,1756371047318,-614.11,0.00019452,2]
[381852897,1756371047328,-480.0,0.00019452,2]
[381852899,1756371047337,-2124.31,0.00019452,2]
[381852901,1756371047346,-480.0,0.00019452,2]
[381852903,1756371047355,-480.0,0.00019452,2]
[381852905,1756371047364,-480.0,0.00019452,2]
[381852907,1756371047373,-480.0,0.00019452,2]
[381852909,1756371047383,-377.80220762,0.00019452,2]
[381852911,1756371047392,-480.0,0.00019452,2]
[381852913,1756371047401,-480.0,0.00019452,2]
[381852915,1756371047410,-480.0,0.00019452,2]
[381852917,1756371047419,-480.0,0.00019452,2]
[381852919,1756371047428,-480.0,0.00019452,2]
[381852921,1756371047438,-480.0,0.00019452,2]
[381852923,1756371047447,-514.9,0.00019452,2]
[381852925,1756371047456,-535.14,0.00019452,2]
[381852927,1756371047466,-1210.99,0.00019452,2]
[381852929,1756371047475,-480.0,0.00019452,2]
[381852931,1756371047484,-480.0,0.00019452,2]
[381852933,1756371047494,-480.0,0.00019452,2]
[381852935,1756371047503,-480.0,0.00019452,2]
[381852937,1756371047512,-480.0,0.00019452,2]
[381852939,1756371047521,-480.0,0.00019452,2]
[381852941,1756371047530,-717.12,0.00019452,2]
[381852943,1756371047539,-560.21,0.00019452,2]
[381852945,1756371047548,-480.0,0.00019452,2]
[381852947,1756371047557,-480.0,0.00019452,2]
[381852949,1756371047569,-480.0,0.00019452,2]
[381852951,1756371047578,-657.48,0.00019452,2]
[381852953,1756371047587,-607.12961876,0.00019452,2]
[381852955,1756371047596,-480.0,0.00019452,2]
[381852957,1756371047605,-480.0,0.00019452,2]
[381852959,1756371047615,-551.03,0.00019452,2]
[381852961,1756371047624,-480.0,0.00019452,2]
[381852963,1756371047633,-480.0,0.00019452,2]
[381852965,1756371047643,-480.0,0.00019452,2]
[381852967,1756371047652,-480.0,0.00019452,2]
[381852969,1756371047661,-480.0,0.00019452,2]
[381852971,1756371047670,-480.0,0.00019452,2]
[381852973,1756371047680,-480.0,0.00019452,2]
[381852975,1756371047689,-480.0,0.00019452,2]
[381852977,1756371047698,-663.69,0.00019452,2]
[381852979,1756371047707,-480.0,0.00019452,2]
[381852981,1756371047716,-480.0,0.00019452,2]
[381852983,1756371047725,-480.0,0.00019452,2]
[381852985,1756371047735,-480.0,0.00019452,2]
[381852987,1756371047743,-4995.98,0.00019452,2]
[381852989,1756371047752,-480.0,0.00019452,2]
[381852991,1756371047762,-513.4,0.00019452,2]
[381852993,1756371047771,-480.0,0.00019452,2]
[381852995,1756371047780,-480.0,0.00019452,2]
[381852997,1756371047789,-480.0,0.00019452,2]
[381852999,1756371047798,-480.0,0.00019452,2]
[381853001,1756371047807,-897.59,0.00019452,2]
[381853003,1756371047816,-889.47,0.00019452,2]
[381853005,1756371047825,-480.0,0.00019452,2]
[381853007,1756371047835,-480.0,0.00019452,2]
[381853009,1756371047844,-532.74,0.00019452,2]
[381853011,1756371047853,-480.0,0.00019452,2]
[381853013,1756371047862,-480.0,0.00019452,2]
[381853015,1756371047871,-480.0,0.00019452,2]
[381853017,1756371047881,-480.0,0.00019452,2]
[381853019,1756371047890,-897.34,0.00019452,2]
[381853021,1756371047899,-480.0,0.00019452,2]
[381853023,1756371047908,-590.74,0.00019452,2]
[381853025,1756371047918,-480.0,0.00019452,2]
[381853027,1756371047927,-818.16,0.00019452,2]
[381853029,1756371047936,-480.0,0.00019452,2]
[381853031,1756371047945,-480.0,0.00019452,2]
[381853033,1756371047956,-480.0,0.00019452,2]
[381853035,1756371047965,-480.0,0.00019452,2]
[381853037,1756371047975,-480.0,0.00019452,2]
[381853039,1756371047984,-1594.33,0.00019452,2]
[381853041,1756371047993,-480.0,0.00019452,2]
[381853043,1756371048002,-482.07403029,0.00019452,2]
[381853045,1756371048012,-480.0,0.00019452,2]
[381853047,1756371048022,-480.0,0.00019452,2]
[381853050,1756371048031,-480.0,0.00019452,2]
[381853052,1756371048041,-480.0,0.00019452,2]
[381853054,1756371048050,-480.0,0.00019452,2]
[381853055,1756371048060,-515.25,0.00019452,2]
[381853057,1756371048069,-480.0,0.00019452,2]
[381853059,1756371048079,-480.0,0.00019452,2]
[381853061,1756371048088,-480.0,0.00019452,2]
[381853063,1756371048098,-480.0,0.00019452,2]
[381853065,1756371048107,-480.0,0.00019452,2]
[381853068,1756371048117,-654.95,0.00019452,2]
[381853070,1756371048127,-480.0,0.00019452,2]
[381853072,1756371048136,-480.0,0.00019452,2]
[381853074,1756371048145,-1013.74,0.00019452,2]
[381853075,1756371048155,-480.62226163,0.00019452,2]
[381853077,1756371048164,-336.61966641,0.00019452,2]
[381853079,1756371048174,-480.0,0.00019452,2]
[381853081,1756371048183,-480.0,0.00019452,2]
[381853083,1756371048192,-480.0,0.00019452,2]
[381853085,1756371048201,-480.0,0.00019452,2]
[381853087,1756371048210,-480.0,0.00019452,2]
[381853088,1756371048219,-480.0,0.00019452,2]
[381853089,1756371048229,-480.0,0.00019452,2]
[381853090,1756371048238,-480.0,0.00019452,2]
[381853091,1756371048247,-498.86,0.00019452,2]
[381853092,1756371048255,-755.81,0.00019452,2]
[381853093,1756371048264,-480.0,0.00019452,2]
[381853094,1756371048273,-480.0,0.00019452,2]
[381853096,1756371048283,-480.0,0.00019452,2]
[381853098,1756371048293,-480.0,0.00019452,2]
[381853100,1756371048303,-580.89,0.00019452,2]
[381853102,1756371048312,-480.0,0.00019452,2]
[381853104,1756371048322,-480.0,0.00019452,2]
[381853106,1756371048332,-480.0,0.00019452,2]
[381853108,1756371048341,-480.0,0.00019452,2]
[381853110,1756371048350,-480.0,0.00019452,2]
[381853112,1756371048359,-480.0,0.00019452,2]
[381853114,1756371048368,-480.0,0.00019452,2]
[381853116,1756371048377,-480.0,0.00019452,2]
[381853118,1756371048386,-480.0,0.00019452,2]
[381853120,1756371048395,-717.84,0.00019452,2]
[381853122,1756371048404,-480.0,0.00019452,2]
[381853124,1756371048414,-480.0,0.00019452,2]
[381853126,1756371048424,-480.0,0.00019452,2]
[381853128,1756371048433,-480.0,0.00019452,2]
[381853130,1756371048444,-480.0,0.00019452,2]
[381853132,1756371048453,-480.0,0.00019452,2]
[381853134,1756371048462,-480.0,0.00019452,2]
[381853136,1756371048472,-547.91,0.00019452,2]
[381853138,1756371048482,-480.0,0.00019452,2]
[381853140,1756371048492,-603.89,0.00019452,2]
[381853143,1756371048502,-480.0,0.00019452,2]
[381853145,1756371048512,-480.0,0.00019452,2]
[381853147,1756371048523,-2110.2,0.00019452,2]
[381853149,1756371048532,-480.0,0.00019452,2]
[381853151,1756371048541,-468.25144743,0.00019452,2]
[381853153,1756371048551,-480.0,0.00019452,2]
[381853155,1756371048560,-480.0,0.00019452,2]
[381853157,1756371048573,-480.0,0.00019452,2]
[381853159,1756371048582,-480.0,0.00019452,2]
[381853161,1756371048592,-480.0,0.00019452,2]
[381853163,1756371048601,-480.0,0.00019452,2]
[381853165,1756371048613,-480.0,0.00019452,2]
[381853167,1756371048622,-480.0,0.00019452,2]
[381853169,1756371048632,-480.0,0.00019452,2]
[381853171,1756371048641,-480.0,0.00019452,2]
[381853173,1756371048652,-378.73853728,0.00019452,2]
[381853175,1756371048662,-480.0,0.00019452,2]
[381853177,1756371048672,-3530.34,0.00019452,2]
[381853179,1756371048682,-480.0,0.00019452,2]
[381853181,1756371048691,-480.0,0.00019452,2]
[381853183,1756371048700,-480.0,0.00019452,2]
[381853185,1756371048710,-480.0,0.00019452,2]
[381853187,1756371048720,-653.03,0.00019452,2]
[381853189,1756371048729,-501.22,0.00019452,2]
[381853191,1756371048739,-480.0,0.00019452,2]
[381853193,1756371048749,-480.0,0.00019452,2]